fUST/lending_fUST_20241108
["ID","MTS","AMOUNT","RATE_DAILY","PERIOD"]
[341670098,1731078653984,-500.0,0.00023561,2]
[341670099,1731078653996,-500.0,0.00023561,2]
[341670100,1731078654006,-500.0,0.00023561,2]
[341670101,1731078654015,-500.0,0.00023561,2]
[341670102,1731078654025,-350.45566383,0.00023561,2]
[341670103,1731078654034,-500.0,0.00023561,2]
[341670104,1731078654043,-575.59843781,0.00023561,2]
[341670105,1731078654052,-443.02241174,0.00023561,2]
[341670106,1731078654062,-500.0,0.00023561,2]
[341670107,1731078654070,-379.18758666,0.00023561,2]
[341670108,1731078654292,-500.0,0.00021917,2]
[341670109,1731078654301,-500.0,0.00022191,2]
[341670110,1731078654311,-513.68137765,0.00022465,2]
[341670111,1731078654320,-500.0,0.00023287,2]
[341670112,1731078654329,-120.81241334,0.00023561,2]
[341670113,1731078654339,-500.0,0.00023561,2]
[341670114,1731078654348,-500.0,0.00023561,2]
[341670115,1731078654357,-500.0,0.00023561,2]
[341670116,1731078654367,-500.0,0.00023561,2]
[341670117,1731078654376,-500.0,0.00023561,2]
[341670118,1731078654386,-688.03,0.00023561,2]
[341670119,1731078654395,-500.0,0.00023561,2]
[341670120,1731078654405,-185.60199756,0.00023561,2]
[341670121,1731078654414,-500.0,0.00023561,2]
[341670122,1731078654422,-500.0,0.00023561,2]
[341670123,1731078654432,-500.0,0.00023561,2]
[341670124,1731078654441,-500.0,0.00023561,2]
[341670125,1731078654450,-500.0,0.00023561,2]
[341670126,1731078654460,-500.0,0.00023561,2]
[341670127,1731078654469,-500.0,0.00023561,2]
[341670128,1731078654478,-499.9928803,0.00023561,2]
[341670129,1731078654487,-500.0,0.00023561,2]
[341670130,1731078654496,-500.0,0.00023561,2]
[341670131,1731078654506,-500.0,0.00023561,2]
[341670132,1731078654515,-242.59919,0.00023561,7]
[341670133,1731078654524,-500.0,0.00023561,2]
[341670134,1731078654533,-242.59919,0.00023561,7]
[341670135,1731078654543,-535.88129,0.00023561,7]
[341670136,1731078654552,-303.625389,0.00023561,7]
[341670137,1731078654561,-303.625389,0.00023561,7]
[341670138,1731078654571,-200.0,0.00023561,2]
[341670139,1731078654580,-500.0,0.00023561,2]
[341670140,1731078654590,-500.0,0.00023561,2]
[341670141,1731078654599,-500.0,0.00023561,2]
[341670142,1731078654608,-500.0,0.00023561,2]
[341670143,1731078654617,-500.0,0.00023561,2]
[341670144,1731078654627,-500.0,0.00023561,2]
[341670145,1731078654638,-500.0,0.00023561,2]
[341670146,1731078654647,-500.0,0.00023561,2]
[341670147,1731078654656,-500.0,0.00023561,2]
[341670148,1731078654665,-151.0,0.00023561,7]
[341670149,1731078654675,-500.0,0.00023561,2]
[341670150,1731078654684,-151.0,0.00023561,7]
[341670151,1731078654693,-500.0,0.00023561,2]
[341670152,1731078654702,-500.0,0.00023561,2]
[341670153,1731078654711,-169.386894,0.00023561,7]
[341670154,1731078654720,-500.0,0.00023561,2]
[341670155,1731078654729,-169.386894,0.00023561,7]
[341670156,1731078654738,-151.0,0.00023561,7]
[341670157,1731078654747,-500.0,0.00023561,2]
[341670158,1731078654757,-500.0,0.00023561,2]
[341670159,1731078654766,-500.0,0.00023561,2]
[341670160,1731078654775,-500.0,0.00023561,2]
[341670161,1731078654783,-500.0,0.00023561,2]
[341670162,1731078654793,-571.62596103,0.00023561,2]
[341670163,1731078654802,-500.0,0.00023561,2]
[341670164,1731078654811,-558.21723353,0.00023561,2]
[341670165,1731078654821,-1128.73,0.00023561,2]
[341670166,1731078654830,-520.718875,0.00023561,7]
[341670167,1731078654839,-520.718875,0.00023561,7]
[341670168,1731078654849,-500.0,0.00023561,2]
[341670169,1731078654858,-500.0,0.00023561,2]
[341670170,1731078654867,-500.0,0.00023561,2]
[341670171,1731078654876,-500.0,0.00023561,2]
[341670172,1731078654886,-500.0,0.00023561,2]
[341670173,1731078654895,-2862.03,0.00023561,2]
[341670174,1731078654903,-500.0,0.00023561,2]
[341670175,1731078654912,-500.0,0.00023561,2]
[341670176,1731078654925,-500.9,0.00023561,2]
[341670177,1731078654934,-500.0,0.00023561,2]
[341670178,1731078654943,-467.32086815,0.00023561,2]
[341670179,1731078654952,-500.0,0.00023561,2]
[341670180,1731078654963,-500.0,0.00023561,2]
[341670181,1731078654972,-500.0,0.00023561,2]
[341670182,1731078654982,-500.0,0.00023561,2]
[341670183,1731078654991,-500.0,0.00023561,2]
[341670184,1731078655001,-711.53,0.00023561,2]
[341670185,1731078655011,-500.0,0.00023561,2]
[341670186,1731078655019,-500.0,0.00023561,2]
[341670187,1731078655029,-500.0,0.00023561,2]
[341670188,1731078655038,-2363.84,0.00023561,2]
[341670189,1731078655047,-221.96880814,0.00023561,2]
[341670190,1731078655056,-500.0,0.00023561,2]
[341670191,1731078655065,-576.94492609,0.00023561,2]
[341670192,1731078655147,-500.0,0.00023561,2]
[341670193,1731078655157,-500.0,0.00023561,2]
[341670194,1731078655166,-500.0,0.00023561,2]
[341670195,1731078655175,-1397.1188017,0.00023667,2]
[341670196,1731078655185,-420.0,0.00023711,2]
[341670197,1731078655195,-500.0,0.00023734,2]
[341670198,1731078655204,-151.0,0.00023735,7]
[341670199,1731078655213,-151.0,0.00023735,7]
[341670200,1731078655222,-6617.1877397,0.00023735,2]
[341670201,1731078655231,-500.0,0.00023826,2]
[341670202,1731078655241,-500.0,0.00023835,2]
[341670203,1731078655250,-500.0,0.00023835,2]
[341670204,1731078655259,-500.0,0.00023835,2]
[341670205,1731078655268,-500.0,0.00023835,2]
[341670206,1731078655277,-500.0,0.00023835,2]
[341670207,1731078655286,-500.0,0.00023835,2]
[341670208,1731078655295,-500.0,0.00023835,2]
[341670209,1731078655304,-500.0,0.00023835,2]
[341670210,1731078655313,-500.0,0.00023835,2]
[341670211,1731078655322,-500.0,0.00023835,2]
[341670212,1731078655331,-500.0,0.00023835,2]
[341670213,1731078655340,-500.0,0.00023835,2]
[341670214,1731078655349,-500.0,0.00023835,2]
[341670215,1731078655359,-688.03,0.00023835,2]
[341670216,1731078655368,-500.0,0.00023835,2]
[341670217,1731078655377,-543.09906569,0.00023835,2]
[341670218,1731078655388,-500.0,0.00023835,2]
[341670219,1731078655402,-500.0,0.00023835,2]
[341670220,1731078655411,-500.0,0.00023835,2]
[341670221,1731078655421,-500.0,0.00023835,2]
[341670222,1731078655431,-500.0,0.00023835,2]
[341670223,1731078655440,-500.0,0.00023835,2]
[341670224,1731078655450,-208.91498446,0.00023835,2]
[341670225,1731078655459,-151.0,0.00023835,7]
[341670226,1731078655468,-790.735772,0.00023835,7]
[341670227,1731078655478,-790.735772,0.00023835,7]
[341670228,1731078655487,-151.0,0.00023835,7]
[341670229,1731078655496,-151.0,0.00023835,7]
[341670230,1731078655505,-500.0,0.00023835,2]
[341670231,1731078655514,-151.0,0.00023835,7]
[341670232,1731078655523,-500.0,0.00023835,2]
[341670233,1731078655533,-500.0,0.00023835,2]
[341670234,1731078655542,-500.0,0.00023835,2]
[341670235,1731078655552,-500.0,0.00023835,2]
[341670236,1731078655561,-500.0,0.00023835,2]
[341670237,1731078655570,-500.0,0.00023835,2]
[341670238,1731078655579,-500.0,0.00023835,2]
[341670239,1731078655588,-500.0,0.00023835,2]
[341670240,1731078655598,-500.0,0.00023835,2]
[341670241,1731078655607,-500.0,0.00023835,2]
[341670242,1731078655617,-151.0,0.00023835,7]
[341670243,1731078655626,-151.0,0.00023835,7]
[341670244,1731078655637,-500.0,0.00023835,2]
[341670245,1731078655648,-500.0,0.00023835,2]
[341670246,1731078655657,-500.0,0.00023835,2]
[341670247,1731078655666,-500.0,0.00023835,2]
[341670248,1731078655675,-500.0,0.00023835,2]
[341670249,1731078655684,-1128.73,0.00023835,2]
[341670250,1731078655694,-500.0,0.00023835,2]
[341670251,1731078655703,-500.0,0.00023835,2]
[341670252,1731078655713,-500.0,0.00023835,2]
[341670253,1731078655723,-500.0,0.00023835,2]
[341670254,1731078655732,-2862.03,0.00023835,2]
[341670255,1731078655741,-500.0,0.00023835,2]
[341670256,1731078655750,-500.0,0.00023835,2]
[341670257,1731078655760,-500.9,0.00023835,2]
[341670258,1731078655769,-500.0,0.00023835,2]
[341670259,1731078655778,-440.97132462,0.00023835,2]
[341670260,1731078655787,-500.0,0.00023835,2]
[341670261,1731078655796,-500.0,0.00023835,2]
[341670262,1731078655805,-500.0,0.00023835,2]
[341670263,1731078655815,-711.53,0.00023835,2]
[341670264,1731078655824,-500.0,0.00023835,2]
[341670265,1731078655834,-500.0,0.00023835,2]
[341670266,1731078655843,-2363.84,0.00023835,2]
[341670267,1731078655853,-151.0,0.00023835,7]
[341670268,1731078655862,-500.0,0.00023835,2]
[341670269,1731078655872,-500.0,0.00023835,2]
[341670270,1731078655881,-151.0,0.00023835,7]
[341670271,1731078655893,-500.0,0.00023835,2]
[341670272,1731078655902,-299.468121,0.00023835,7]
[341670273,1731078655911,-248.527748,0.00023835,7]
[341670274,1731078655926,-500.0,0.00023835,2]
[341670275,1731078655935,-500.0,0.00023968,2]
[341670276,1731078655945,-166.666666,0.00023969,2]
[341670277,1731078655954,-233.0,0.00023998,2]
[341670278,1731078655965,-500.0,0.00024008,2]
[341670279,1731078655974,-502.41505175,0.00024008,2]
[341670280,1731078655985,-500.99482455,0.00024008,2]
[341670281,1731078655996,-500.0,0.00024008,2]
[341670282,1731078656006,-500.0,0.00024109,2]
[341670283,1731078656017,-500.0,0.00024109,2]
[341670284,1731078656026,-500.0,0.00024109,2]
[341670285,1731078656036,-500.0,0.00024109,2]
[341670286,1731078656045,-500.0,0.00024109,2]
[341670287,1731078656054,-500.0,0.00024109,2]
[341670288,1731078656063,-500.0,0.00024109,2]
[341670289,1731078656073,-500.0,0.00024109,2]
[341670290,1731078656082,-500.0,0.00024109,2]
[341670291,1731078656091,-688.03,0.00024109,2]
[341670292,1731078656100,-500.0,0.00024109,2]
[341670293,1731078656109,-500.0,0.00024109,2]
[341670294,1731078656119,-500.0,0.00024109,2]
[341670295,1731078656127,-500.0,0.00024109,2]
[341670296,1731078656141,-500.0,0.00024109,2]
[341670297,1731078656150,-500.0,0.00024109,2]
[341670298,1731078656159,-500.0,0.00024109,2]
[341670299,1731078656169,-500.0,0.00024109,2]
[341670300,1731078656179,-500.0,0.00024109,2]
[341670301,1731078656188,-491.99243602,0.00024109,2]
[341670302,1731078656198,-327.15101791,0.00024109,2]
[341670303,1731078656207,-500.0,0.00024109,2]
[341670304,1731078656216,-500.0,0.00024109,2]
[341670305,1731078656226,-500.0,0.00024109,2]
[341670306,1731078656234,-500.0,0.00024109,2]
[341670307,1731078656244,-500.0,0.00024109,2]
[341670308,1731078656253,-500.0,0.00024109,2]
[341670309,1731078656262,-500.0,0.00024109,2]
[341670310,1731078656272,-500.0,0.00024109,2]
[341670311,1731078656281,-1128.73,0.00024109,2]
[341670312,1731078656290,-221.022448,0.00024109,7]
[341670313,1731078656300,-500.0,0.00024109,2]
[341670314,1731078656309,-221.022448,0.00024109,7]
[341670315,1731078656318,-500.0,0.00024109,2]
[341670316,1731078656328,-500.0,0.00024109,2]
[341670317,1731078656338,-500.0,0.00024109,2]
[341670318,1731078656347,-2862.03,0.00024109,2]
[341670319,1731078656356,-500.9,0.00024109,2]
[341670320,1731078656366,-500.0,0.00024109,2]
[341670321,1731078656375,-151.0,0.00024109,7]
[341670322,1731078656384,-500.0,0.00024109,2]
[341670323,1731078656394,-500.0,0.00024109,2]
[341670324,1731078656403,-711.53,0.00024109,2]
[341670325,1731078656413,-500.0,0.00024109,2]
[341670326,1731078656422,-2363.84,0.00024109,2]
[341670327,1731078656432,-500.0,0.00024109,2]
[341670328,1731078656441,-526.236112,0.00024109,7]
[341670329,1731078656450,-444.21753726,0.00024109,2]
[341670330,1731078656459,-526.236112,0.00024109,7]
[341670331,1731078656469,-500.0,0.00024109,2]
[341670332,1731078656478,-500.0,0.00024109,2]
[341670333,1731078656488,-500.0,0.00024382,2]
[341670334,1731078656497,-500.0,0.00024383,2]
[341670335,1731078656507,-500.0,0.00024383,2]
[341670336,1731078656516,-500.0,0.00024383,2]
[341670337,1731078656525,-500.0,0.00024383,2]
[341670338,1731078656534,-688.03,0.00024383,2]
[341670339,1731078656543,-500.0,0.00024383,2]
[341670340,1731078656553,-500.0,0.00024383,2]
[341670341,1731078656563,-500.0,0.00024383,2]
[341670342,1731078656572,-500.0,0.00024383,2]
[341670343,1731078656581,-183.248502,0.00024383,7]
[341670344,1731078656591,-183.248502,0.00024383,7]
[341670345,1731078656600,-500.0,0.00024383,2]
[341670346,1731078656609,-500.0,0.00024383,2]
[341670347,1731078656619,-500.0,0.00024383,2]
[341670348,1731078656628,-500.0,0.00024383,2]
[341670349,1731078656638,-500.0,0.00024383,2]
[341670350,1731078656648,-500.0,0.00024383,2]
[341670351,1731078656657,-500.0,0.00024383,2]
[341670352,1731078656740,-500.0,0.00024383,2]
[341670353,1731078656750,-500.0,0.00024383,2]
[341670354,1731078656759,-1128.73,0.00024383,2]
[341670355,1731078656769,-500.0,0.00024383,2]
[341670356,1731078656778,-500.0,0.00024383,2]
[341670357,1731078656787,-500.0,0.00024383,2]
[341670358,1731078656796,-2862.03,0.00024383,2]
[341670359,1731078656806,-500.9,0.00024383,2]
[341670360,1731078656815,-500.0,0.00024383,2]
[341670361,1731078656824,-500.0,0.00024383,2]
[341670362,1731078656833,-500.0,0.00024383,2]
[341670363,1731078656843,-711.53,0.00024383,2]
[341670364,1731078656853,-500.0,0.00024383,2]
[341670365,1731078656862,-2363.84,0.00024383,2]
[341670366,1731078656871,-500.0,0.00024383,2]
[341670367,1731078656880,-500.0,0.00024383,2]
[341670368,1731078656890,-166.666666,0.00024482,2]
[341670369,1731078656899,-153.0,0.00024518,2]
[341670370,1731078656908,-153.0,0.00024518,2]
[341670371,1731078656921,-153.0,0.00024518,2]
[341670372,1731078656930,-153.0,0.00024518,2]
[341670373,1731078656939,-153.0,0.00024518,2]
[341670374,1731078656948,-153.0,0.00024518,2]
[341670375,1731078656959,-153.0,0.00024518,2]
[341670376,1731078656969,-153.0,0.00024518,2]
[341670377,1731078656978,-153.0,0.00024518,2]
[341670378,1731078656988,-153.0,0.00024518,2]
[341670379,1731078656998,-153.0,0.00024518,2]
[341670380,1731078657008,-153.0,0.00024518,2]
[341670381,1731078657017,-153.0,0.00024518,2]
[341670382,1731078657025,-153.0,0.00024518,2]
[341670383,1731078657035,-153.0,0.00024518,2]
[341670384,1731078657044,-153.0,0.00024518,2]
[341670385,1731078657054,-500.0,0.00024657,2]
[341670386,1731078657063,-500.0,0.00024657,2]
[341670387,1731078657073,-500.0,0.00024657,2]
[341670388,1731078657083,-500.0,0.00024657,2]
[341670389,1731078657092,-688.03,0.00024657,2]
[341670390,1731078657102,-500.0,0.00024657,2]
[341670391,1731078657112,-500.0,0.00024657,2]
[341670392,1731078657121,-570.5058092,0.00024657,2]
[341670393,1731078657130,-500.0,0.00024657,2]
[341670394,1731078657142,-500.0,0.00024657,2]
[341670395,1731078657151,-500.0,0.00024657,2]
[341670396,1731078657161,-500.0,0.00024657,2]
[341670397,1731078657170,-500.0,0.00024657,2]
[341670398,1731078657180,-1128.73,0.00024657,2]
[341670399,1731078657189,-232.48976611,0.00024657,2]
[341670400,1731078657199,-500.0,0.00024657,2]
[341670401,1731078657208,-500.0,0.00024657,2]
[341670402,1731078657218,-2862.03,0.00024657,2]
[341670403,1731078657228,-500.9,0.00024657,2]
[341670404,1731078657237,-500.0,0.00024657,2]
[341670405,1731078657246,-311.54265367,0.00024657,2]
[341670406,1731078657255,-500.0,0.00024657,2]
[341670407,1731078657265,-711.53,0.00024657,2]
[341670408,1731078657274,-500.0,0.00024657,2]
[341670409,1731078657283,-2363.84,0.00024657,2]
[341670410,1731078657293,-159.0,0.00024657,2]
[341670411,1731078657302,-150.0,0.00024658,2]
[341670412,1731078657311,-151.0,0.00024658,7]
[341670413,1731078657321,-500.0,0.00024658,2]
[341670414,1731078657330,-500.0,0.00024658,2]
[341670415,1731078657339,-500.0,0.00024658,2]
[341670416,1731078657349,-500.0,0.00024658,2]
[341670417,1731078657358,-500.0,0.00024658,2]
[341670418,1731078657368,-500.0,0.00024658,2]
[341670419,1731078657378,-500.0,0.00024658,2]
[341670420,1731078657390,-500.0,0.00024658,2]
[341670421,1731078657399,-522.75546366,0.00024658,2]
[341670422,1731078657409,-500.0,0.00024658,2]
[341670423,1731078657418,-465.22255752,0.00024658,2]
[341670424,1731078657429,-500.0,0.00024658,2]
[341670425,1731078657439,-500.0,0.00024658,2]
[341670426,1731078657448,-500.0,0.00024658,2]
[341670427,1731078657458,-500.0,0.00024658,2]
[341670428,1731078657468,-500.0,0.00024658,2]
[341670429,1731078657478,-613.92042761,0.00024658,2]
[341670430,1731078657487,-151.0,0.00024658,7]
[341670431,1731078657497,-151.0,0.00024658,7]
[341670432,1731078657506,-169.386894,0.00024658,7]
[341670433,1731078657517,-169.386894,0.00024658,7]
[341670434,1731078657526,-520.718875,0.00024658,7]
[341670435,1731078657535,-520.718875,0.00024658,7]
[341670436,1731078657546,-242.59919,0.00024691,7]
[341670437,1731078657555,-242.59919,0.00024691,7]
[341670438,1731078657566,-535.88129,0.00024691,7]
[341670439,1731078657575,-303.625389,0.00024691,7]
[341670440,1731078657585,-303.625389,0.00024691,7]
[341670441,1731078657595,-1397.1188017,0.00024695,2]
[341670442,1731078657604,-3085.4916954,0.00024696,2]
[341670443,1731078657614,-500.0,0.00024931,2]
[341670444,1731078657623,-500.0,0.00024931,2]
[341670445,1731078657633,-505.31585111,0.00024931,2]
[341670446,1731078657647,-500.0,0.00024931,2]
[341670447,1731078657656,-688.03,0.00024931,2]
[341670448,1731078657666,-500.0,0.00024931,2]
[341670449,1731078657676,-500.0,0.00024931,2]
[341670450,1731078657685,-500.0,0.00024931,2]
[341670451,1731078657695,-500.0,0.00024931,2]
[341670452,1731078657705,-500.0,0.00024931,2]
[341670453,1731078657714,-1128.73,0.00024931,2]
[341670454,1731078657723,-500.0,0.00024931,2]
[341670455,1731078657733,-500.0,0.00024931,2]
[341670456,1731078657742,-2862.03,0.00024931,2]
[341670457,1731078657752,-500.9,0.00024931,2]
[341670458,1731078657761,-500.0,0.00024931,2]
[341670459,1731078657770,-500.0,0.00024931,2]
[341670460,1731078657780,-711.53,0.00024931,2]
[341670461,1731078657789,-500.0,0.00024931,2]
[341670462,1731078657798,-2363.84,0.00024931,2]
[341670463,1731078657808,-451.0,0.00024932,2]
[341670464,1731078657818,-151.0,0.00025,7]
[341670465,1731078657828,-451.0,0.00025,2]
[341670466,1731078657837,-151.0,0.0002509,7]
[341670467,1731078657847,-150.173,0.00025196,2]
[341670468,1731078657856,-1095.09349205,0.00025196,2]
[341670469,1731078657866,-1632.41,0.000252,2]
[341670470,1731078657875,-151.0,0.000252,7]
[341670471,1731078657885,-151.0,0.000252,7]
[341670472,1731078657898,-500.0,0.00025205,2]
[341670473,1731078657907,-500.0,0.00025205,2]
[341670474,1731078657919,-500.0,0.00025205,2]
[341670475,1731078657927,-688.03,0.00025205,2]
[341670476,1731078657936,-500.0,0.00025205,2]
[341670477,1731078657945,-297.26244556,0.00025205,2]
[341670478,1731078657954,-500.0,0.00025205,2]
[341670479,1731078657965,-192.49347701,0.00025205,2]
[341670480,1731078657973,-500.0,0.00025205,2]
[341670481,1731078657983,-1128.73,0.00025205,2]
[341670482,1731078657992,-500.0,0.00025205,2]
[341670483,1731078658002,-500.0,0.00025205,2]
[341670484,1731078658013,-2862.03,0.00025205,2]
[341670485,1731078658021,-500.9,0.00025205,2]
[341670486,1731078658031,-500.0,0.00025205,2]
[341670487,1731078658040,-500.0,0.00025205,2]
[341670488,1731078658049,-711.53,0.00025205,2]
[341670489,1731078658058,-500.0,0.00025205,2]
[341670490,1731078658067,-2363.84,0.00025205,2]
[341670491,1731078658076,-151.0,0.00025205,7]
[341670492,1731078658085,-151.0,0.00025205,7]
[341670493,1731078658096,-248.527748,0.00025205,7]
[341670494,1731078658105,-268.691,0.00025278,9]
[341670495,1731078658114,-500.0,0.000254,2]
[341670496,1731078658123,-150.0,0.00025413,2]
[341670497,1731078658132,-150.0,0.00025413,2]
[341670498,1731078658142,-1132.0,0.00025413,2]
[341670499,1731078658227,-529.0,0.00025413,2]
[341670500,1731078658236,-2392.0,0.00025413,2]
[341670501,1731078658246,-500.0,0.00025479,2]
[341670502,1731078658255,-500.0,0.00025479,2]
[341670503,1731078658264,-500.0,0.00025479,2]
[341670504,1731078658273,-688.03,0.00025479,2]
[341670505,1731078658283,-500.0,0.00025479,2]
[341670506,1731078658291,-151.0,0.00025479,7]
[341670507,1731078658301,-790.735772,0.00025479,7]
[341670508,1731078658310,-790.735772,0.00025479,7]
[341670509,1731078658319,-151.0,0.00025479,7]
[341670510,1731078658329,-151.0,0.00025479,7]
[341670511,1731078658338,-250.01068083,0.00025479,2]
[341670512,1731078658347,-151.0,0.00025479,7]
[341670513,1731078658357,-500.0,0.00025479,2]
[341670514,1731078658366,-151.0,0.00025479,7]
[341670515,1731078658376,-151.0,0.00025479,7]
[341670516,1731078658385,-1128.73,0.00025479,2]
[341670517,1731078658397,-500.0,0.00025479,2]
[341670518,1731078658407,-2862.03,0.00025479,2]
[341670519,1731078658416,-500.9,0.00025479,2]
[341670520,1731078658426,-500.0,0.00025479,2]
[341670521,1731078658435,-413.16,0.00025479,2]
[341670522,1731078658444,-711.53,0.00025479,2]
[341670523,1731078658454,-2363.84,0.00025479,2]
[341670524,1731078658463,-1397.1188017,0.00025724,2]
[341670525,1731078658473,-500.0,0.00025753,2]
[341670526,1731078658482,-500.0,0.00025753,2]
[341670527,1731078658491,-500.0,0.00025753,2]
[341670528,1731078658500,-688.03,0.00025753,2]
[341670529,1731078658510,-500.0,0.00025753,2]
[341670530,1731078658519,-500.0,0.00025753,2]
[341670531,1731078658528,-1128.73,0.00025753,2]
[341670532,1731078658537,-500.0,0.00025753,2]
[341670533,1731078658546,-2862.03,0.00025753,2]
[341670534,1731078658556,-500.9,0.00025753,2]
[341670535,1731078658565,-500.0,0.00025753,2]
[341670536,1731078658574,-151.0,0.00025753,7]
[341670537,1731078658583,-711.53,0.00025753,2]
[341670538,1731078658593,-2363.84,0.00025753,2]
[341670539,1731078658602,-526.236112,0.00025753,7]
[341670540,1731078658611,-526.236112,0.00025753,7]
[341670541,1731078658620,-587.0,0.00025771,2]
[341670542,1731078658629,-451.0,0.0002589,2]
[341670543,1731078658641,-151.0,0.00026027,7]
[341670544,1731078658650,-500.0,0.00026027,2]
[341670545,1731078658660,-500.0,0.00026027,2]
[341670546,1731078658669,-500.0,0.00026027,2]
[341670547,1731078658678,-688.03,0.00026027,2]
[341670548,1731078658689,-482.689999,0.00026027,2]
[341670549,1731078658698,-500.0,0.00026027,2]
[341670550,1731078658708,-1128.73,0.00026027,2]
[341670551,1731078658717,-221.022448,0.00026027,7]
[341670552,1731078658726,-221.022448,0.00026027,7]
[341670553,1731078658735,-500.0,0.00026027,2]
[341670554,1731078658745,-2862.03,0.00026027,2]
[341670555,1731078658754,-500.9,0.00026027,2]
[341670556,1731078658763,-500.0,0.00026027,2]
[341670557,1731078658773,-711.53,0.00026027,2]
[341670558,1731078658782,-2363.84,0.00026027,2]
[341670559,1731078658792,-1500.0,0.00026047,2]
[341670560,1731078658801,-1500.0,0.00026047,2]
[341670561,1731078658810,-3085.4916954,0.00026136,2]
[341670562,1731078658819,-3200.0,0.00026238,2]
[341670563,1731078658828,-500.0,0.00026301,2]
[341670564,1731078658838,-199.39957034,0.00026301,2]
[341670565,1731078658847,-500.0,0.00026301,2]
[341670566,1731078658857,-688.03,0.00026301,2]
[341670567,1731078658866,-500.0,0.00026301,2]
[341670568,1731078658875,-1128.73,0.00026301,2]
[341670569,1731078658884,-500.0,0.00026301,2]
[341670570,1731078658899,-2862.03,0.00026301,2]
[341670571,1731078658908,-500.9,0.00026301,2]
[341670572,1731078658922,-302.83940223,0.00026301,2]
[341670573,1731078658932,-711.53,0.00026301,2]
[341670574,1731078658941,-2363.84,0.00026301,2]
[341670575,1731078658951,-200.0,0.0002633,16]
[341670576,1731078658959,-500.0,0.00026387,2]
[341670577,1731078658969,-500.0,0.00026387,2]
[341670578,1731078658980,-500.0,0.00026387,2]
[341670579,1731078658990,-500.0,0.00026387,2]
[341670580,1731078658999,-1200.0,0.000265,4]
[341670581,1731078659008,-500.0,0.00026575,2]
[341670582,1731078659018,-156.81988444,0.00026575,2]
[341670583,1731078659027,-688.03,0.00026575,2]
[341670584,1731078659036,-183.248502,0.00026575,7]
[341670585,1731078659045,-183.248502,0.00026575,7]
[341670586,1731078659054,-500.0,0.00026575,2]
[341670587,1731078659063,-1128.73,0.00026575,2]
[341670588,1731078659072,-500.0,0.00026575,2]
[341670589,1731078659082,-2862.03,0.00026575,2]
[341670590,1731078659091,-500.9,0.00026575,2]
[341670591,1731078659100,-711.53,0.00026575,2]
[341670592,1731078659109,-2363.84,0.00026575,2]
[341670593,1731078659117,-1397.1188017,0.00026752,2]
[341670594,1731078659127,-1000.0,0.0002677,2]
[341670595,1731078659136,-500.0,0.00026849,2]
[341670596,1731078659151,-688.03,0.00026849,2]
[341670597,1731078659160,-585.16883426,0.00026849,2]